bitfinex/quotes_BTCUSD_20241024
["timestamp","ask_amount","ask_price","bid_price","bid_amount"]
[1729749088866,0.118763,67361.0,67352.0,0.0754]
[1729749089123,0.005,67363.0,67354.0,0.22297704]
[1729749089340,0.118763,67361.0,67355.0,0.15793249]
[1729749089564,0.005,67363.0,67356.0,0.00742868]
[1729749089777,0.118761,67362.0,67355.0,0.15050381]
[1729749089983,0.118761,67362.0,67356.0,0.00742873]
[1729749090194,0.118761,67362.0,67355.0,0.15050381]
[1729749090409,0.118761,67362.0,67356.0,0.00742872]
[1729749090617,0.118761,67362.0,67355.0,0.15050381]
[1729749091046,0.118761,67362.0,67356.0,0.00742873]
[1729749091290,0.118761,67362.0,67355.0,0.15050381]
[1729749091521,0.118761,67362.0,67356.0,0.00742876]
[1729749091705,0.118761,67362.0,67355.0,0.15050381]
[1729749091943,0.118761,67362.0,67356.0,0.00742874]
[1729749092155,0.118761,67362.0,67355.0,0.15050381]
[1729749092365,0.005,67363.0,67356.0,0.00742874]
[1729749092577,0.118762,67362.0,67355.0,0.15050381]
[1729749092787,0.118762,67362.0,67356.0,0.00742871]
[1729749093009,0.118762,67362.0,67355.0,0.15050381]
[1729749093217,0.118762,67362.0,67356.0,0.00742876]
[1729749093430,0.118762,67362.0,67355.0,0.15050381]
[1729749093642,0.118762,67362.0,67356.0,0.00742874]
[1729749093858,0.118762,67362.0,67355.0,0.15050381]
[1729749094072,0.118762,67362.0,67356.0,0.00742873]
[1729749094322,0.118762,67362.0,67355.0,0.15050381]
[1729749094550,0.118762,67362.0,67356.0,0.00742871]
[1729749094788,0.118762,67362.0,67355.0,0.15050381]
[1729749095010,0.118762,67362.0,67356.0,0.00742872]
[1729749095210,0.118762,67362.0,67356.0,0.02049578]
[1729749097867,0.118762,67362.0,67357.0,0.00464295]
[1729749098108,0.118762,67362.0,67358.0,0.02513913]
[1729749098340,0.118762,67362.0,67359.0,0.00464295]
[1729749098778,0.118762,67362.0,67355.0,0.15050381]
[1729749099226,0.118762,67362.0,67356.0,0.02514284]
[1729749099479,0.16326136,67362.0,67357.0,0.00464298]
[1729749099690,0.16326136,67362.0,67358.0,0.00464298]
[1729749099905,0.118762,67362.0,67359.0,0.00464298]
[1729749100110,0.118762,67362.0,67360.0,0.00464298]
[1729749100331,0.118762,67362.0,67361.0,0.00464298]
[1729749100824,0.04949936,67363.0,67361.0,0.00464298]
[1729749101026,0.04449936,67364.0,67362.0,0.00464298]
[1729749101240,0.04449936,67364.0,67363.0,0.00464298]
[1729749101458,0.16326893,67365.0,67363.0,0.00464298]
[1729749101680,0.04451293,67365.0,67364.0,0.00464298]
[1729749101898,0.04451293,67366.0,67364.0,0.00464298]
[1729749102108,0.04451293,67366.0,67365.0,0.00464298]
[1729749102316,0.04451293,67366.0,67365.0,0.02512628]
[1729749102536,0.04451293,67366.0,67365.0,0.00464298]
[1729749102753,0.07176939,67368.0,67365.0,0.00464298]
[1729749102754,0.18552239,67367.0,67365.0,0.02512628]
[1729749102975,0.18552239,67367.0,67359.0,0.0811]
[1729749102976,0.18552239,67367.0,67366.0,0.00464298]
[1729749104278,0.06676939,67367.0,67366.0,0.00464298]
[1729749104940,0.19052139,67368.0,67366.0,0.00464298]
[1729749105170,0.07176939,67368.0,67367.0,0.00464298]
[1729749105391,0.19051939,67368.0,67367.0,0.00464298]
[1729749105823,0.12375,67368.0,67367.0,0.00464298]
[1729749106248,0.37712303,67368.0,67367.0,0.00464298]
[1729749106460,0.118756,67365.0,67361.0,0.000825]
[1729749106673,0.16327473,67365.0,67362.0,0.02512936]
[1729749106954,0.04451873,67364.0,67363.0,0.00464278]
[1729749107384,0.04451873,67364.0,67363.0,0.02512752]
[1729749107797,0.04451873,67364.0,67363.0,0.00464278]
[1729749108240,0.16327573,67364.0,67363.0,0.00464278]
[1729749108477,0.118757,67364.0,67363.0,0.00464278]
[1729749108684,0.45358772,67364.0,67363.0,0.00464278]
[1729749108888,0.4535896,67364.0,67363.0,0.00464278]
[1729749110806,0.26805262,67364.0,67361.0,0.000825]
[1729749111018,0.118761,67362.0,67361.0,0.000825]
[1729749111592,0.16328017,67362.0,67361.0,0.000825]
[1729749115435,0.16493017,67362.0,67361.0,0.000825]
[1729749115722,0.27804248,67362.0,67361.0,0.000825]
[1729749115895,0.56102985,67362.0,67361.0,0.000825]
[1729749116079,0.4719935,67362.0,67361.0,0.000825]
[1729749118741,0.5548935,67362.0,67361.0,0.000825]
[1729749120979,0.93624993,67362.0,67361.0,0.000825]
[1729749121199,0.99390112,67362.0,67361.0,0.000825]
[1729749121649,1.03669591,67362.0,67361.0,0.000825]
[1729749121863,1.03869591,67362.0,67361.0,0.000825]
[1729749122343,0.99590112,67362.0,67361.0,0.000825]
[1729749125711,1.12908668,67362.0,67361.0,0.000825]
[1729749127720,0.99590112,67362.0,67361.0,0.000825]
[1729749128210,0.84339731,67362.0,67361.0,0.000825]
[1729749128890,0.97651869,67362.0,67361.0,0.000825]
[1729749129134,0.97851869,67362.0,67361.0,0.000825]
[1729749129353,0.84539731,67362.0,67361.0,0.000825]
[1729749129811,0.84339731,67362.0,67361.0,0.000825]
[1729749130044,0.84539731,67362.0,67361.0,0.000825]
[1729749132823,0.84477588,67362.0,67361.0,0.000825]
[1729749133947,0.84476479,67362.0,67361.0,0.000825]
[1729749136906,0.84276479,67362.0,67361.0,0.000825]
[1729749137724,0.9932686,67362.0,67361.0,0.000825]
[1729749137911,0.84276479,67362.0,67361.0,0.000825]
[1729749148360,0.38005518,67362.0,67361.0,0.000825]
[1729749148590,0.19417752,67362.0,67361.0,0.000825]
[1729749148810,0.12763771,67362.0,67361.0,0.000825]
[1729749149506,0.19417752,67362.0,67361.0,0.000825]
[1729749149721,0.16978315,67362.0,67361.0,0.000825]
[1729749151307,0.125411,67362.0,67361.0,0.000825]
[1729749151584,0.19195081,67362.0,67361.0,0.000825]
[1729749152020,0.19198908,67362.0,67361.0,0.000825]
[1729749152685,0.125411,67362.0,67361.0,0.000825]
[1729749153402,0.28928348,67362.0,67361.0,0.000825]
[1729749154527,0.37805426,67362.0,67361.0,0.000825]
[1729749156728,0.28937276,67362.0,67361.0,0.000825]
[1729749158529,0.40041564,67362.0,67361.0,0.000825]
[1729749159644,0.28937276,67362.0,67361.0,0.000825]
[1729749161413,0.28947336,67362.0,67361.0,0.000825]
[1729749163420,0.38032598,67362.0,67361.0,0.000825]
[1729749171604,0.49144598,67362.0,67361.0,0.000825]
[1729749171815,0.38032598,67362.0,67361.0,0.000825]
[1729749173550,0.38032654,67362.0,67361.0,0.000825]
[1729749174403,0.49143779,67362.0,67361.0,0.000825]
[1729749175255,0.38032654,67362.0,67361.0,0.000825]
[1729749175890,0.49143869,67362.0,67361.0,0.000825]
[1729749176754,0.49143918,67362.0,67361.0,0.000825]
[1729749177430,0.21626362,67362.0,67361.0,0.000825]
[1729749178294,0.31126362,67362.0,67361.0,0.000825]
[1729749178969,0.220411,67362.0,67361.0,0.000825]
[1729749181180,0.47711481,67362.0,67361.0,0.000825]
[1729749181421,0.56796743,67362.0,67361.0,0.000825]
[1729749191568,0.47211481,67362.0,67361.0,0.000825]
[1729749191764,0.47711481,67362.0,67361.0,0.000825]
[1729749193572,0.47211481,67362.0,67361.0,0.000825]
[1729749193778,0.47711481,67362.0,67361.0,0.000825]
[1729749198917,0.47661481,67362.0,67361.0,0.000825]
[1729749202036,0.56746743,67362.0,67361.0,0.000825]
[1729749207168,0.67246743,67362.0,67361.0,0.000825]
[1729749207373,0.71525815,67362.0,67361.0,0.000825]
[1729749212382,0.71725815,67362.0,67361.0,0.000825]
[1729749212597,0.7385027,67362.0,67361.0,0.000825]
[1729749213743,0.7405027,67362.0,67361.0,0.000825]
[1729749214095,0.7385027,67362.0,67361.0,0.000825]
[1729749215154,0.7405027,67362.0,67361.0,0.000825]
[1729749215392,0.7385027,67362.0,67361.0,0.000825]
[1729749215993,0.7385027,67362.0,67354.0,0.000825]
[1729749215994,0.31312562,67355.0,67354.0,0.000825]
[1729749216166,0.56882943,67355.0,67354.0,0.000825]
[1729749217418,0.57382943,67355.0,67354.0,0.000825]
[1729749218619,0.67382943,67355.0,67354.0,0.000825]
[1729749220710,0.76468205,67355.0,67354.0,0.000825]
[1729749221328,0.67382943,67355.0,67354.0,0.000825]
[1729749222850,0.76468205,67355.0,67354.0,0.000825]
[1729749223057,0.67382943,67355.0,67354.0,0.000825]
[1729749224362,0.76468205,67355.0,67354.0,0.000825]
[1729749224583,0.67382943,67355.0,67354.0,0.000825]
[1729749226919,0.59162943,67355.0,67354.0,0.000825]
[1729749227980,0.345273,67355.0,67354.0,0.000825]
[1729749228221,0.31462562,67355.0,67354.0,0.000825]
[1729749231938,0.123773,67355.0,67354.0,0.000825]
[1729749232189,0.21462562,67355.0,67354.0,0.000825]
[1729749232401,0.21462562,67355.0,67354.0,0.01693891]
[1729749232813,0.21462562,67355.0,67354.0,0.000825]
[1729749241137,0.30772562,67355.0,67354.0,0.000825]
[1729749242255,0.48122943,67355.0,67354.0,0.000825]
[1729749244185,0.64518923,67355.0,67354.0,0.000825]
[1729749244612,0.7784391,67355.0,67354.0,0.000825]
[1729749245077,0.77845906,67355.0,67354.0,0.000825]
[1729749252581,0.68760644,67355.0,67354.0,0.000825]
[1729749252797,0.55210024,67355.0,67354.0,0.000825]
[1729749253039,0.37859643,67355.0,67354.0,0.000825]
[1729749254359,0.21462562,67355.0,67354.0,0.000825]
[1729749254607,0.37865197,67355.0,67354.0,0.000825]
[1729749256653,0.21462562,67355.0,67354.0,0.000825]
[1729749257060,0.123773,67355.0,67354.0,0.000825]
[1729749257478,0.21462562,67355.0,67354.0,0.000825]
[1729749266329,0.3786012,67355.0,67354.0,0.000825]
[1729749267795,0.37861232,67355.0,67354.0,0.000825]
[1729749271773,0.50031232,67355.0,67354.0,0.000825]
[1729749271995,0.63358405,67355.0,67354.0,0.000825]
[1729749273949,0.50031232,67355.0,67354.0,0.000825]
[1729749275227,0.47731232,67355.0,67354.0,0.000825]
[1729749275693,0.37861232,67355.0,67354.0,0.000825]
[1729749282793,0.2877597,67355.0,67354.0,0.000825]
[1729749283016,0.37861232,67355.0,67354.0,0.000825]
[1729749283868,0.2877597,67355.0,67354.0,0.000825]
[1729749284108,0.2827597,67355.0,67354.0,0.000825]
[1729749284948,0.2827597,67355.0,67354.0,0.081925]
[1729749287155,0.39386159,67355.0,67354.0,0.081925]
[1729749287776,0.37163904,67355.0,67354.0,0.081925]
[1729749288371,0.2827597,67355.0,67354.0,0.081925]
[1729749288604,0.118773,67355.0,67354.0,0.081925]
[1729749289445,0.2828012,67355.0,67354.0,0.081925]
[1729749289666,0.18541962,67355.0,67354.0,0.081925]
[1729749292098,0.06664662,67357.0,67354.0,0.081925]
[1729749292304,0.04735922,67361.0,67356.0,0.211971]
[1729749292558,0.00293078,67361.0,67357.0,0.32480381]
[1729749292814,0.00293078,67361.0,67357.0,0.35642207]
[1729749296138,0.118765,67360.0,67357.0,0.35642207]
[1729749296369,0.00293078,67361.0,67357.0,0.35642207]
[1729749296607,0.12169378,67361.0,67357.0,0.35642207]
[1729749297469,0.00293078,67361.0,67357.0,0.35642207]
[1729749299720,0.118765,67360.0,67357.0,0.35642207]
[1729749300077,0.00293078,67361.0,67357.0,0.35642207]
[1729749300287,0.12169378,67361.0,67357.0,0.35642207]
[1729749301536,0.118768,67358.0,67357.0,0.11271826]
[1729749301763,0.118766,67360.0,67357.0,0.11271826]
[1729749301941,0.118768,67358.0,67357.0,0.11271826]
[1729749303665,0.00293078,67361.0,67357.0,0.11271826]
[1729749304070,0.12169478,67361.0,67357.0,0.11271826]
[1729749304287,0.00293078,67361.0,67357.0,0.11271826]
[1729749304507,0.118767,67359.0,67357.0,0.11271826]
[1729749305175,0.118765,67360.0,67357.0,0.11271826]
[1729749305379,0.00293078,67361.0,67357.0,0.11271826]
[1729749305994,0.118768,67359.0,67357.0,0.11271826]
[1729749306199,0.00293078,67361.0,67357.0,0.11271826]
[1729749306405,0.118764,67360.0,67357.0,0.11271826]
[1729749307016,0.00293078,67361.0,67357.0,0.11271826]
[1729749307260,0.118766,67360.0,67357.0,0.11271826]
[1729749308132,0.00293078,67361.0,67357.0,0.11271826]
[1729749308330,0.12169378,67361.0,67357.0,0.11271826]
[1729749309629,0.00293078,67361.0,67357.0,0.11271826]
[1729749309856,0.12169478,67361.0,67357.0,0.11271826]
[1729749310087,0.00293078,67361.0,67357.0,0.11271826]
[1729749310325,0.12169378,67361.0,67357.0,0.11271826]
[1729749310547,0.00293078,67361.0,67357.0,0.11271826]
[1729749310777,0.12169378,67361.0,67357.0,0.11271826]
[1729749311067,0.00293078,67361.0,67357.0,0.11271826]
[1729749311286,0.12169378,67361.0,67357.0,0.11271826]
[1729749312873,0.00293078,67361.0,67357.0,0.11271826]
[1729749313136,0.118765,67360.0,67357.0,0.11271826]
[1729749313382,0.118764,67360.0,67357.0,0.11271826]
[1729749314303,0.118765,67360.0,67357.0,0.11271826]
[1729749315265,0.00293078,67361.0,67357.0,0.11271826]
[1729749315478,0.118766,67360.0,67357.0,0.11271826]
[1729749315699,0.118766,67360.0,67357.0,0.11354326]
[1729749315870,0.24045778,67361.0,67357.0,0.11354326]
[1729749315871,0.00293078,67361.0,67357.0,0.11354326]
[1729749316207,0.118765,67360.0,67357.0,0.11354326]
[1729749316743,0.12169378,67361.0,67357.0,0.11354326]
[1729749316971,0.118765,67360.0,67357.0,0.11354326]
[1729749317587,0.12169378,67361.0,67357.0,0.11354326]
[1729749317795,0.118765,67360.0,67357.0,0.11354326]
[1729749318196,0.00293078,67361.0,67357.0,0.11354326]
[1729749319025,0.12169378,67361.0,67357.0,0.11354326]
[1729749319432,0.00293078,67361.0,67357.0,0.11354326]
[1729749319644,0.00293078,67361.0,67358.0,0.15050381]
[1729749319862,0.00293078,67361.0,67360.0,0.38111662]
[1729749320020,0.00293078,67361.0,67360.0,0.54162043]
[1729749320221,0.00293078,67361.0,67360.0,0.57320285]
[1729749322123,0.00165,67361.0,67360.0,0.57192207]
[1729749332091,0.00165,67361.0,67360.0,0.48106945]
[1729749334716,0.00165,67361.0,67360.0,0.38616945]
[1729749335169,0.00165,67361.0,67360.0,0.30956945]
[1729749338434,0.00165,67361.0,67360.0,0.31039445]
[1729749340375,0.00165,67361.0,67360.0,0.31503691]
[1729749340585,0.00165,67361.0,67360.0,0.31503692]
[1729749346457,0.00165,67361.0,67360.0,0.31039445]
[1729749346667,0.00165,67361.0,67360.0,0.31503691]
[1729749347335,0.00165,67361.0,67360.0,0.58268953]
[1729749348007,0.00165,67361.0,67360.0,0.57804707]
[1729749348230,0.00165,67361.0,67360.0,0.58268936]
[1729749348434,0.00165,67361.0,67360.0,0.57804707]
[1729749348655,0.00165,67361.0,67360.0,0.58268936]
[1729749349083,0.00165,67361.0,67360.0,0.48878936]
[1729749349948,0.00165,67361.0,67360.0,0.48414707]
[1729749350154,0.00165,67361.0,67360.0,0.48878946]
[1729749351795,0.00165,67361.0,67360.0,0.48414707]
[1729749352005,0.00165,67361.0,67360.0,0.48878945]
[1729749352227,0.00165,67361.0,67360.0,0.49621727]
[1729749359618,0.00165,67361.0,67360.0,0.40124707]
[1729749359824,0.00165,67361.0,67360.0,0.41331728]
[1729749360284,0.09765,67361.0,67360.0,0.20498144]
[1729749360508,0.09765,67361.0,67360.0,0.31874544]
[1729749361889,0.09765,67361.0,67360.0,0.31874556]
[1729749362745,0.09765,67361.0,67360.0,0.06576498]
[1729749367304,0.09765,67361.0,67360.0,0.05833708]
[1729749367723,0.09765,67361.0,67360.0,0.06576547]
[1729749368342,0.09765,67361.0,67360.0,0.05833708]
[1729749369778,0.09765,67361.0,67360.0,0.05833744]
[1729749370501,0.09765,67361.0,67360.0,0.17710144]
[1729749371205,0.09765,67361.0,67360.0,0.17710139]
[1729749373027,0.09765,67361.0,67360.0,0.05833739]
[1729749373467,0.09765,67361.0,67360.0,0.17710139]
[1729749376790,0.09765,67361.0,67360.0,0.17245865]
[1729749376996,0.09765,67361.0,67360.0,0.17710139]
[1729749379823,0.09765,67361.0,67360.0,0.18452972]
[1729749380481,0.09765,67361.0,67360.0,0.1845297]
[1729749382453,0.09765,67361.0,67360.0,0.0657657]
[1729749382891,0.09765,67361.0,67360.0,0.1845297]
[1729749383099,0.09765,67361.0,67360.0,0.0657657]
[1729749383303,0.09765,67361.0,67360.0,0.1845297]
[1729749383915,0.0686,67364.0,67362.0,0.11876]
[1729749384119,0.0686,67364.0,67363.0,0.00464271]
[1729749384322,0.0686,67364.0,67363.0,0.05240404]
[1729749384559,0.0686,67364.0,67363.0,0.17116304]
[1729749384788,0.0686,67364.0,67363.0,0.05240404]
[1729749385430,0.07025,67364.0,67363.0,0.05240404]
[1729749389343,0.194007,67364.0,67363.0,0.05240404]
[1729749389552,0.287207,67364.0,67363.0,0.00464271]
[1729749392436,0.298063,67361.0,67360.0,0.000825]
[1729749392669,0.38891562,67361.0,67360.0,0.000825]
[1729749392871,0.45558882,67361.0,67360.0,0.000825]
[1729749393984,0.38891562,67361.0,67360.0,0.000825]
[1729749397764,0.64165752,67361.0,67360.0,0.000825]
[1729749398369,0.55284225,67361.0,67360.0,0.000825]
[1729749399026,0.57584225,67361.0,67360.0,0.000825]
[1729749399471,0.41191562,67361.0,67360.0,0.000825]
[1729749400584,0.47849571,67361.0,67360.0,0.000825]
[1729749403664,0.35964309,67361.0,67360.0,0.000825]
[1729749403894,0.52104004,67361.0,67360.0,0.000825]
[1729749404143,0.38891562,67361.0,67360.0,0.000825]
[1729749404360,0.43329706,67361.0,67360.0,0.000825]
[1729749404584,0.34244444,67361.0,67360.0,0.000825]
[1729749404795,0.298063,67361.0,67360.0,0.000825]
[1729749404999,0.34244652,67361.0,67360.0,0.000825]
[1729749405413,0.34244651,67361.0,67360.0,0.000825]
[1729749406043,0.33744651,67361.0,67360.0,0.000825]
[1729749406257,0.204863,67361.0,67360.0,0.000825]
[1729749406995,0.123763,67361.0,67360.0,0.000825]
[1729749407206,0.005,67361.0,67360.0,0.000825]
[1729749407631,0.005,67361.0,67360.0,0.04867578]
[1729749407836,0.005,67361.0,67360.0,0.00546797]
[1729749408095,0.21461562,67361.0,67360.0,0.04867578]
[1729749408312,0.21461562,67361.0,67360.0,0.000825]
[1729749409775,0.123763,67361.0,67360.0,0.000825]
[1729749419306,0.123763,67361.0,67360.0,0.00546814]
[1729749420664,0.005,67361.0,67360.0,0.00546814]
[1729749421115,0.005,67361.0,67360.0,0.0532722]
[1729749421322,0.123763,67361.0,67360.0,0.000825]
[1729749421520,0.123763,67361.0,67360.0,0.05327213]
[1729749421718,0.123763,67361.0,67360.0,0.00546807]
[1729749422157,0.123763,67361.0,67360.0,0.05326463]
[1729749423502,0.123763,67361.0,67360.0,0.03514354]
[1729749425070,0.123763,67361.0,67360.0,0.03050047]
[1729749425306,0.123763,67361.0,67360.0,0.03514348]
[1729749425523,0.123763,67361.0,67360.0,0.03050047]
[1729749425738,0.123763,67361.0,67360.0,0.03514348]
[1729749427408,0.123763,67361.0,67360.0,0.00546801]
[1729749428460,0.296263,67361.0,67360.0,0.00546801]
[1729749428663,0.296263,67361.0,67360.0,0.000825]
[1729749429526,0.47476681,67361.0,67360.0,0.000825]
[1729749429745,0.57476681,67361.0,67360.0,0.000825]
[1729749431850,0.73871261,67361.0,67360.0,0.000825]
[1729749432071,0.74071261,67361.0,67360.0,0.000825]
[1729749432550,0.87192975,67361.0,67360.0,0.000825]
[1729749433007,0.73871261,67361.0,67360.0,0.000825]
[1729749434471,0.83156523,67361.0,67360.0,0.000825]
[1729749434715,0.73871261,67361.0,67360.0,0.000825]
[1729749434958,0.78342013,67361.0,67360.0,0.000825]
[1729749435198,0.9330782,67361.0,67360.0,0.000825]
[1729749435441,0.9310782,67361.0,67360.0,0.000825]
[1729749435665,0.74058973,67361.0,67360.0,0.000825]
[1729749436592,0.153768,67358.0,67357.0,0.000825]
[1729749436816,0.83484735,67358.0,67357.0,0.000825]
[1729749438634,0.83384735,67358.0,67357.0,0.000825]
[1729749438828,0.83284735,67358.0,67357.0,0.000825]
[1729749439475,0.96585089,67358.0,67357.0,0.000825]
[1729749440336,1.08420378,67358.0,67357.0,0.000825]
[1729749440995,1.08620378,67358.0,67357.0,0.000825]
[1729749442055,0.75199473,67358.0,67357.0,0.000825]
[1729749442315,0.95579399,67358.0,67357.0,0.000825]
[1729749442562,0.82284735,67358.0,67357.0,0.000825]
[1729749443025,0.91569997,67358.0,67357.0,0.000825]
[1729749444674,0.91537594,67358.0,67357.0,0.000825]
[1729749445867,0.91337594,67358.0,67357.0,0.000825]
[1729749446103,0.82252332,67358.0,67357.0,0.000825]
[1729749446361,0.91537594,67358.0,67357.0,0.000825]
[1729749449572,0.91528566,67358.0,67357.0,0.000825]
[1729749451280,0.91328566,67358.0,67357.0,0.000825]
[1729749451493,0.82243304,67358.0,67357.0,0.000825]
[1729749451715,0.91328566,67358.0,67357.0,0.000825]
[1729749451907,0.82243304,67358.0,67357.0,0.000825]
[1729749452668,0.91528566,67358.0,67357.0,0.000825]
[1729749452865,0.91328566,67358.0,67357.0,0.000825]
[1729749453063,0.82243304,67358.0,67357.0,0.000825]
[1729749453270,0.65902443,67358.0,67357.0,0.000825]
[1729749453465,0.56817181,67358.0,67357.0,0.000825]
[1729749453695,0.65902443,67358.0,67357.0,0.000825]
[1729749454100,0.82240218,67358.0,67357.0,0.000825]
[1729749454298,0.81405218,67358.0,67357.0,0.000825]
[1729749454499,0.82405218,67358.0,67357.0,0.000825]
[1729749455609,0.9149048,67358.0,67357.0,0.000825]
[1729749455801,0.9169048,67358.0,67357.0,0.000825]
[1729749457478,0.75352705,67358.0,67357.0,0.000825]
[1729749459519,0.66267443,67358.0,67357.0,0.000825]
[1729749460469,0.66067443,67358.0,67357.0,0.000825]
[1729749461956,0.75152705,67358.0,67357.0,0.000825]
[1729749462219,0.75352705,67358.0,67357.0,0.000825]
[1729749462582,0.79623973,67358.0,67357.0,0.000825]
[1729749463449,0.79423973,67358.0,67357.0,0.000825]
[1729749463644,0.70338711,67358.0,67357.0,0.000825]
[1729749465332,0.79623973,67358.0,67357.0,0.000825]
[1729749465971,0.95970699,67358.0,67357.0,0.000825]
[1729749467290,1.09255657,67358.0,67357.0,0.000825]
[1729749467724,1.00170395,67358.0,67357.0,0.000825]
[1729749468143,0.90885133,67358.0,67357.0,0.000825]
[1729749468351,0.99970395,67358.0,67357.0,0.000825]
[1729749468564,0.73295133,67358.0,67357.0,0.000825]
[1729749468822,0.65795437,67358.0,67357.0,0.000825]
[1729749469076,0.66795437,67358.0,67357.0,0.000825]
[1729749469497,0.65795437,67358.0,67357.0,0.000825]
[1729749469719,0.66795437,67358.0,67357.0,0.000825]
[1729749470577,0.69095437,67358.0,67357.0,0.000825]
[1729749471686,0.82380395,67358.0,67357.0,0.000825]
[1729749472512,0.69095437,67358.0,67357.0,0.000825]
[1729749472760,0.95300699,67358.0,67357.0,0.000825]
[1729749472984,0.86215437,67358.0,67357.0,0.000825]
[1729749473623,1.01161015,67358.0,67357.0,0.000825]
[1729749473823,0.86215437,67358.0,67357.0,0.000825]
[1729749475692,0.85215437,67358.0,67357.0,0.000825]
[1729749475877,0.86215437,67358.0,67357.0,0.000825]
[1729749476723,0.86266688,67358.0,67357.0,0.000825]
[1729749477550,0.88591453,67358.0,67357.0,0.000825]
[1729749480813,0.88599756,67358.0,67357.0,0.000825]
[1729749482776,0.97685018,67358.0,67357.0,0.000825]
[1729749483059,0.88599756,67358.0,67357.0,0.000825]
[1729749483966,0.97685018,67358.0,67357.0,0.000825]
[1729749484206,0.88599756,67358.0,67357.0,0.000825]
[1729749489323,0.79079756,67358.0,67357.0,0.000825]
[1729749491602,0.79279756,67358.0,67357.0,0.000825]
[1729749493069,0.79079756,67358.0,67357.0,0.000825]
[1729749496620,0.81199998,67358.0,67357.0,0.000825]
[1729749496845,0.79279756,67358.0,67357.0,0.000825]
[1729749497701,0.79279756,67358.0,67354.0,0.000825]
[1729749497702,0.425173,67355.0,67354.0,0.000825]
[1729749497921,0.97615753,67355.0,67354.0,0.000825]
[1729749499033,0.97415753,67355.0,67354.0,0.000825]
[1729749499456,0.97615753,67355.0,67354.0,0.000825]
[1729749502836,1.12666134,67355.0,67354.0,0.000825]
[1729749503482,0.97615753,67355.0,67354.0,0.000825]
[1729749504333,0.97609171,67355.0,67354.0,0.000825]
[1729749505199,0.97409171,67355.0,67354.0,0.000825]
[1729749505409,0.97609171,67355.0,67354.0,0.000825]
[1729749506298,0.97409171,67355.0,67354.0,0.000825]
[1729749506540,0.61898647,67355.0,67354.0,0.000825]
[1729749506780,0.7359248,67355.0,67354.0,0.000825]
[1729749507005,0.54327379,67355.0,67354.0,0.096025]
[1729749507465,0.53827379,67355.0,67354.0,0.096025]
[1729749507703,0.54327379,67355.0,67354.0,0.096025]
[1729749507929,0.56850089,67355.0,67354.0,0.096025]
[1729749509054,0.56849286,67355.0,67354.0,0.096025]
[1729749511703,0.38998905,67355.0,67354.0,0.096025]
[1729749511918,0.52324145,67355.0,67354.0,0.096025]
[1729749515987,0.28998905,67355.0,67354.0,0.096025]
[1729749517240,0.38084167,67355.0,67354.0,0.096025]
[1729749517666,0.38076869,67355.0,67354.0,0.096025]
[1729749518329,0.37854159,67355.0,67354.0,0.096025]
[1729749523130,0.37854159,67355.0,67354.0,0.000825]
[1729749523362,0.21462562,67355.0,67354.0,0.000825]
[1729749523612,0.55698329,67355.0,67354.0,0.000825]
[1729749528344,0.5569683,67355.0,67354.0,0.000825]
[1729749532944,0.39312943,67355.0,67354.0,0.000825]
[1729749533151,0.55697173,67355.0,67354.0,0.000825]
[1729749536096,0.53397173,67355.0,67354.0,0.000825]
[1729749536511,0.55697173,67355.0,67354.0,0.000825]
[1729749537143,0.37846792,67355.0,67354.0,0.000825]
[1729749541575,0.21462562,67355.0,67354.0,0.000825]
[1729749543739,0.37842299,67355.0,67354.0,0.000825]
[1729749547191,0.37846003,67355.0,67354.0,0.000825]
[1729749552323,0.51160799,67355.0,67354.0,0.000825]
[1729749552966,0.37846003,67355.0,67354.0,0.000825]
[1729749553174,0.51172529,67355.0,67354.0,0.000825]
[1729749557082,0.61079126,67355.0,67354.0,0.000825]
[1729749557931,0.4775163,67355.0,67354.0,0.000825]
[1729749561965,0.47751793,67355.0,67354.0,0.000825]
[1729749566226,0.55721793,67355.0,67354.0,0.000825]
[1729749571850,0.55727947,67355.0,67354.0,0.000825]
[1729749574299,0.37867947,67355.0,67354.0,0.000825]
[1729749574534,0.42116694,67355.0,67354.0,0.000825]
[1729749576386,0.28782685,67355.0,67354.0,0.000825]
[1729749576648,0.123773,67355.0,67354.0,0.174325]
[1729749576898,0.39897567,67355.0,67354.0,0.174325]
[1729749577126,0.28785156,67355.0,67354.0,0.20419388]
[1729749577360,0.39894551,67355.0,67354.0,0.174325]
[1729749577837,0.39890151,67355.0,67354.0,0.174325]
[1729749580193,0.28780861,67355.0,67354.0,0.174325]
[1729749580648,0.28780861,67355.0,67354.0,0.097025]
[1729749581550,0.28774329,67355.0,67354.0,0.097025]
[1729749582317,0.28774329,67355.0,67354.0,0.000825]
[1729749584149,0.37656718,67355.0,67354.0,0.000825]
[1729749585014,0.37654463,67355.0,67354.0,0.000825]
[1729749585227,0.39875106,67355.0,67354.0,0.000825]
[1729749586582,0.28770565,67355.0,67354.0,0.000825]
[1729749591298,0.28770611,67355.0,67354.0,0.000825]
[1729749596202,0.123773,67355.0,67354.0,0.000825]
[1729749596398,0.28771973,67355.0,67354.0,0.000825]
[1729749599660,0.51069677,67355.0,67354.0,0.000825]
[1729749599901,0.28771973,67355.0,67354.0,0.000825]
[1729749600100,0.42095898,67355.0,67354.0,0.000825]
[1729749600335,0.46122354,67355.0,67354.0,0.000825]
[1729749600534,0.59946279,67355.0,67354.0,0.000825]
[1729749600985,0.46622354,67355.0,67354.0,0.000825]
[1729749601745,0.55707616,67355.0,67354.0,0.000825]
[1729749602172,0.69031541,67355.0,67354.0,0.000825]
[1729749603662,0.79031541,67355.0,67354.0,0.000825]
[1729749604429,0.79026657,67355.0,67354.0,0.000825]
[1729749606086,0.65704922,67355.0,67354.0,0.000825]
[1729749607659,0.79026657,67355.0,67354.0,0.000825]
[1729749608120,0.38269279,67355.0,67354.0,0.000825]
[1729749608355,0.38769279,67355.0,67354.0,0.000825]
[1729749608748,0.39870755,67355.0,67354.0,0.000825]
[1729749608752,0.37650587,67355.0,67354.0,0.000825]
[1729749608978,0.28769599,67355.0,67354.0,0.000825]
[1729749609433,0.19038485,67355.0,67354.0,0.000825]
[1729749609916,0.123773,67355.0,67354.0,0.000825]
[1729749610137,0.19038485,67355.0,67354.0,0.000825]
[1729749610636,0.123773,67355.0,67354.0,0.000825]
[1729749611770,0.04440306,67355.0,67354.0,0.000825]
[1729749611987,0.16817606,67355.0,67354.0,0.097325]